Workbook

Sheet Superpesis
B1: Aino-Maija Holappa os. Haapamäki | F1: 12.5.1990 Ilmajoki
B2: SUPERPESIS | E2: Runkosarja | I2: Kärkilyönnit (KL), pesänvälit | P2: Ylempi loppusarja | U2: Alempi loppusarja | Z2: Arvo-ottelut ja mitalit | AF2: Runkosarjan jälkeen
B3: Vuosi | C3: Sija | D3: Seura | E3: OTT | F3: KUN | G3: LÖI | H3: TOI | I3: KL | J3: 0 > 1 | K3: 1 > 2 | L3: 2 > 3 | M3: 3 > k | N3: KL-% | P3: OTT | Q3: KUN | R3: LÖI | S3: TOI | T3: KL | U3: OTT | V3: KUN | W3: LÖI | X3: TOI | Y3: KL | Z3: IL | AA3: LL | AB3: Halli | AC3: K | AD3: H | AE3: P
B4: 2007 | D4: IK | F4: suomensarja
B5: 2008 | D5: IK | F5: ykköspesis
B6: 2009 | D6: PeTo-Jussit 2 | F6: ykköspesis
B7: 2009 | C7: 4. | D7: PeTo-Jussit | E7: 1 | F7: 0 | G7: 0 | H7: 0 | I7: 2 | J7: 2 | K7: 0 | L7: 0 | M7: 0 | N7: 100.0 % | O7: =PRODUCT(I7/N7) -> 2
B8: 2010 | C8: 10. | D8: YPJ | E8: 24 | F8: 0 | G8: 1 | H8: 10 | I8: 60 | J8: 22 | K8: 32 | L8: 5 | M8: 1 | N8: 49.6 % | O8: 121.0165389
B9: 2011 | C9: 9. | D9: PeTo-Jussit | E9: 22 | F9: 1 | G9: 5 | H9: 8 | I9: 61 | J9: 16 | K9: 22 | L9: 17 | M9: 6 | N9: 48.4 % | O9: 126.0330579
B10: 2012 | C10: 11. | D10: PeTo-Jussit | E10: 22 | F10: 1 | G10: 1 | H10: 20 | I10: 92 | J10: 71 | K10: 15 | L10: 4 | M10: 2 | N10: 63.4 % | O10: 145.1104101
B11: 2013 | C11: 3. | D11: Kirittäret | E11: 24 | F11: 1 | G11: 1 | H11: 33 | I11: 91 | J11: 75 | K11: 3 | L11: 11 | M11: 2 | N11: 57.6 % | O11: 157.9861111 | P11: 8 | Q11: 0 | R11: 0 | S11: 10 | T11: 34 | Z11: 1 | AE11: 1 | AF11: play off
B12: 2014 | C12: 2. | D12: Kirittäret | E12: 8 | F12: 0 | G12: 0 | H12: 8 | I12: 31 | J12: 18 | K12: 10 | L12: 3 | M12: 0 | N12: 57.4 % | O12: =PRODUCT(I12/N12) -> 54.00696864 | AD12: 1
B13: 2015 | C13: 2. | D13: Kirittäret | E13: 24 | F13: 1 | G13: 4 | H13: 18 | I13: 68 | J13: 46 | K13: 14 | L13: 3 | M13: 5 | N13: 54.0 % | O13: 126 | P13: 12 | Q13: 2 | R13: 1 | S13: 6 | T13: 33 | AB13: 1 | AD13: 1 | AF13: play off
B14: 2016 | C14: 1. | D14: Kirittäret | E14: 22 | F14: 1 | G14: 5 | H14: 15 | I14: 63 | J14: 40 | K14: 9 | L14: 8 | M14: 6 | N14: 50.4 % | O14: 125 | P14: 10 | Q14: 1 | R14: 7 | S14: 5 | T14: 27 | AB14: 1 | AC14: 1 | AF14: play off
B15: 2017
B16: 2018 | C16: 1. | D16: Kirittäret | E16: 6 | F16: 0 | G16: 1 | H16: 7 | I16: 11 | J16: 7 | K16: 2 | L16: 1 | M16: 1 | N16: 50.0 % | O16: 22 | P16: 8 | Q16: 0 | R16: 0 | S16: 2 | T16: 11 | AC16: 1 | AF16: play off
B17: Yhteensä | E17: =SUM(E4:E16) -> 153 | F17: 5 | G17: 18 | H17: 119 | I17: 479 | J17: 297 | K17: 107 | L17: 52 | M17: 23 | N17: =PRODUCT(I17/O17) -> 54.5 % | O17: =SUM(O7:O16) -> 879.1530866 | P17: =SUM(P4:P16) -> 38 | Q17: 3 | R17: 8 | S17: 23 | T17: 105 | U17: 0 | V17: 0 | W17: 0 | X17: 0 | Y17: 0 | Z17: 1 | AA17: 0 | AB17: 2 | AC17: 2 | AD17: 2 | AE17: 1
B18: Pesispörssi | D18: =SUM(F17:H17)+((I17-F17-G17)/3)+(E17/3)+(Z17*25)+(AA17*25)+(AB17*10)+(AC17*25)+(AD17*20)+(AE17*15)-20-25 -> 450.0
B20: URA SUPERISSA | E20: OTT | F20: KUN | G20: LÖI | H20: TOI | I20: KL | K20: ka/L | L20: ka/T | M20: ka/KL | N20: KL - % | P20: ENSIMMÄISET
B21: Runkosarja | E21: =PRODUCT(E17) -> 153 | F21: =PRODUCT(F17) -> 5 | G21: =PRODUCT(G17) -> 18 | H21: =PRODUCT(H17) -> 119 | I21: =PRODUCT(I17) -> 479 | K21: =PRODUCT((F21+G21)/E21) -> 0.15 | L21: =PRODUCT(H21/E21) -> 0.78 | M21: =PRODUCT(I21/E21) -> 3.13 | N21: =PRODUCT(N17) -> 54.5 % | O21: =PRODUCT(O17) -> 879.1530866 | P21: Ottelu | S21: 12.07. 2009 Kirittäret - PeTo-Jussit 2-0 (4-1, 3-0) | AD21: 1. ottelu | AF21: 19 v 2 kk 0 pv
B22: Ylempi loppusarja | E22: =SUM(P17) -> 38 | F22: =SUM(Q17) -> 3 | G22: =SUM(R17) -> 8 | H22: =SUM(S17) -> 23 | I22: =SUM(T17) -> 105 | K22: =PRODUCT((F22+G22)/E22) -> 0.29 | L22: =PRODUCT(H22/E22) -> 0.61 | M22: =PRODUCT(I22/E22) -> 2.76 | N22: =PRODUCT(I22/O22) -> 43.9 % | O22: 239 | P22: Lyöty juoksu | S22: 10.06. 2010 Lipottaret - YPJ 0-2 (2-8, 2-8) | AD22: 9. ottelu | AF22: 20 v 0 kk 29 pv
B23: Alempi loppusarja | P23: Tuotu juoksu | S23: 01.06. 2010 PeTo-Jussit - YPJ 2-0 (1-0, 3-1) | AD23: 7. ottelu | AF23: 20 v 0 kk 20 pv
B24: KAIKKI | E24: =SUM(E21:E23) -> 191 | F24: =SUM(F21:F23) -> 8 | G24: =SUM(G21:G23) -> 26 | H24: =SUM(H21:H23) -> 142 | I24: =SUM(I21:I23) -> 584 | K24: =PRODUCT((F24+G24)/E24) -> 0.18 | L24: =PRODUCT(H24/E24) -> 0.74 | M24: =PRODUCT(I24/E24) -> 3.06 | N24: =PRODUCT(I24/O24) -> 52.2 % | O24: =SUM(O21:O23) -> 1118.153087 | P24: Kunnari | S24: 19.06. 2011 PeTo-Jussit - Pesäkarhut 0-2 (3-11, 0-8) | AD24: 36. ottelu | AF24: 20 v 0 kk 20 pv
B26: Seurat | D26: IK = Ilmajoen Kisailijat (1921), kasvattajaseura
D27: PeTo-Jussit = PeTo-Jussit, Seinäjoki (2004)
D28: YPJ = Ylihärmän Pesis-Junkkarit (1996)
D29: Kirittäret = Jyväskylän Pesis (2004)

Sheet Arvo-ottelut
B1: ITÄ - LÄNSI - KORTTI
B2: Aino-Maija Nikkola os. Haapamäki | C2: 12.5.1990 Ilmajoki
B3: NAISET | C3: Itä - Länsi, tulos | D3: Joukkue | E3: Seura | G3: V | H3: T | I3: H | J3: Up. | K3: Lj. | L3: Palk. | M3: O | N3: K | O3: L | P3: T | Q3: KL | R3: 1 | S3: 2 | T3: 3 | U3: k | V3: KL-% | W3: Pelinjohtaja | X3: Yleisöä
B4: 13.07. 2013 Hyvinkää | C4: 0-1 (2-2, 2-6) | D4: Itä | E4: Kirittäret | I4: 1 | K4: jok | M4: 1 | Q4: 2/5 | R4: 2/5 | V4: 40.0 % | W4: Jukka Mäkinen | X4: 3038
B5: Ikä ensimmäisessä ottelussa | C5: 23 v 2 kk 1 pv
